{"text_format":"1","workbook":"xlsx","n_sheets":5,"sheets":["Dataset","Sheet1","Sheet2","Sheet3","Sheet4"],"not_rendered":{"charts":0,"images":0,"macros":1,"external_links":0,"defined_names":0,"comments":0,"pivot_tables":0},"unopened":[],"bounds":{"document_bytes":16777216,"sheet_cells":100000,"rows_first":2000,"rows_last":500,"rows_between":2000,"halvings":0,"cell_chars":16384,"cell_head_chars":4096},"cells_cut":0,"cells_raw":0,"read":"whole","date_system":"1900"}

{"sheet":"Dataset","index":0,"n_rows":11,"n_cols":5,"rows_kept":11,"cut":false,"hidden":false,"merged":[[1,1,1,4]]}
[]
[null,"Clicking OK on Message Box"]
[]
[null,"Product","Price","Quantity","Sales"]
[null,"Mouse",1000,20,{"$f":"C5*D5","v":20000}]
[null,"Printer",null,30,{"$f":"C6*D6","v":0}]
[null,"Laptop",3000,40,120000]
[null,"Monitor",2000,45,90000]
[null,"Battery",null,10,0]
[null,"Mobile",2500,15,37500]
[null,"Keyboard",1500,17,25500]

{"sheet":"Sheet1","index":1,"n_rows":11,"n_cols":5,"rows_kept":11,"cut":false,"hidden":false,"merged":[[1,1,1,4]]}
[]
[null,"Clicking OK on Message Box to Find Out Product Name of Missing Price"]
[]
[null,"Product","Price","Quantity","Sales"]
[null,"Mouse",1000,20,{"$f":"C5*D5","v":20000}]
[null,"Printer",null,30,{"$f":"C6*D6","v":0}]
[null,"Laptop",3000,40,120000]
[null,"Monitor",2000,45,90000]
[null,"Battery",null,10,0]
[null,"Mobile",2500,15,37500]
[null,"Keyboard",1500,17,25500]

{"sheet":"Sheet2","index":2,"n_rows":0,"n_cols":0,"rows_kept":0,"cut":false,"hidden":false,"merged":[]}

{"sheet":"Sheet3","index":3,"n_rows":11,"n_cols":4,"rows_kept":11,"cut":false,"hidden":false,"merged":[[1,1,1,3]]}
[]
[null,"Clicking OK on Message Box to Find Out Missing Price Address"]
[]
[null,"Price","Quantity","Sales"]
[null,1000,20,{"$f":"B5*C5","v":20000}]
[null,null,30,{"$f":"B6*C6","v":0}]
[null,3000,40,120000]
[null,2000,45,90000]
[null,null,10,0]
[null,2500,15,37500]
[null,1500,17,25500]

{"sheet":"Sheet4","index":4,"n_rows":0,"n_cols":0,"rows_kept":0,"cut":false,"hidden":false,"merged":[]}